[Event "Masters Tournament (MTO)"]
[Site "Biel, Switzerland"]
[Date "2026.07.13"]
[Round "1.37"]
[White "Erne, Raphael"]
[Black "Hajduk, Tomasz"]
[Result "1/2-1/2"]
[TimeControl "100+30+30sec/move"]
[WhiteTitle "-"]
[BlackTitle "-"]
[WhiteFideId "1341928"]
[BlackFideId "21811415"]
[WhiteElo "2166"]
[BlackElo "1921"]

1. c4 {[%clk 01:40:50]} {[%emt 00:00:10]} c5 {[%clk 01:40:47]} {[%emt
00:00:14]} 2. g3 {[%clk 01:41:07]} {[%emt 00:00:12]} Nf6 {[%clk 01:40:51]}
{[%emt 00:00:26]} 3. Bg2 {[%clk 01:41:19]} {[%emt 00:00:18]} Nc6 {[%clk
01:40:35]} {[%emt 00:00:47]} 4. Nc3 {[%clk 01:40:40]} {[%emt 00:01:08]} e6
{[%clk 01:40:18]} {[%emt 00:00:47]} 5. Nf3 {[%clk 01:39:11]} {[%emt 00:02:00]}
d5 {[%clk 01:40:27]} {[%emt 00:00:21]} 6. cxd5 {[%clk 01:39:10]} {[%emt
00:00:30]} exd5 {[%clk 01:39:38]} {[%emt 00:01:20]} 7. d4 {[%clk 01:38:20]}
{[%emt 00:01:19]} cxd4 {[%clk 01:37:34]} {[%emt 00:02:34]} 8. Nxd4 {[%clk
01:38:14]} {[%emt 00:00:36]} Bc5 {[%clk 01:37:28]} {[%emt 00:00:36]} 9. Nb3
{[%clk 01:35:38]} {[%emt 00:03:06]} Bb4 {[%clk 01:35:33]} {[%emt 00:02:25]} 10.
O-O {[%clk 01:34:59]} {[%emt 00:01:09]} Be6 {[%clk 01:35:08]} {[%emt 00:00:55]}
11. Bg5 {[%clk 01:30:14]} {[%emt 00:05:14]} O-O {[%clk 01:14:45]} {[%emt
00:20:54]} 12. Rc1 {[%clk 01:22:25]} {[%emt 00:08:18]} h6 {[%clk 00:57:15]}
{[%emt 00:18:00]} 13. Bxf6 {[%clk 01:01:35]} {[%emt 00:21:20]} Qxf6 {[%clk
00:57:29]} {[%emt 00:00:17]} 14. a3 {[%clk 01:00:48]} {[%emt 00:01:17]} Bxc3
{[%clk 00:51:47]} {[%emt 00:06:12]} 15. Rxc3 {[%clk 00:58:30]} {[%emt
00:02:48]} d4 {[%clk 00:45:25]} {[%emt 00:06:52]} 16. Rc1 {[%clk 00:53:38]}
{[%emt 00:05:22]} Rad8 {[%clk 00:44:52]} {[%emt 00:01:03]} 17. Nc5 {[%clk
00:51:56]} {[%emt 00:02:12]} Bc8 {[%clk 00:45:01]} {[%emt 00:00:22]} 18. Qa4
{[%clk 00:47:57]} {[%emt 00:04:28]} Rfe8 {[%clk 00:41:06]} {[%emt 00:04:25]} 19.
Rfe1 {[%clk 00:43:50]} {[%emt 00:04:36]} Re5 {[%clk 00:30:51]} {[%emt
00:10:46]} 20. b4 {[%clk 00:30:53]} {[%emt 00:13:27]} Qe7 {[%clk 00:26:14]}
{[%emt 00:05:07]} 21. Qc2 {[%clk 00:16:17]} {[%emt 00:15:06]} d3 {[%clk
00:18:11]} {[%emt 00:08:33]} 22. Nxd3 {[%clk 00:13:20]} {[%emt 00:03:27]} Nd4
{[%clk 00:18:32]} {[%emt 00:00:09]} 23. Qxc8 {[%clk 00:12:34]} {[%emt
00:01:16]} Rxc8 {[%clk 00:12:48]} {[%emt 00:06:14]} 24. Rxc8+ {[%clk 00:12:59]}
{[%emt 00:00:05]} Kh7 {[%clk 00:13:14]} {[%emt 00:00:03]} 25. Nxe5 {[%clk
00:13:19]} {[%emt 00:00:11]} Qxe5 {[%clk 00:13:39]} {[%emt 00:00:05]} 26. Bxb7
{[%clk 00:10:02]} {[%emt 00:03:48]} Nxe2+ {[%clk 00:11:31]} {[%emt 00:02:37]}
27. Kf1 {[%clk 00:09:30]} {[%emt 00:01:02]} Nxg3+ {[%clk 00:11:55]} {[%emt
00:00:06]} 28. hxg3 {[%clk 00:09:54]} {[%emt 00:00:06]} Qb5+ {[%clk 00:12:22]}
{[%emt 00:00:03]} 29. Kg1 {[%clk 00:10:04]} {[%emt 00:00:20]} Qxb7 {[%clk
00:12:46]} {[%emt 00:00:06]} 30. Rce8 {[%clk 00:09:37]} {[%emt 00:00:57]} a6
{[%clk 00:10:45]} {[%emt 00:02:32]} 31. R8e5 {[%clk 00:09:06]} {[%emt
00:01:00]} Qf3 {[%clk 00:10:16]} {[%emt 00:00:58]} 32. Ra5 {[%clk 00:08:09]}
{[%emt 00:01:28]} h5 {[%clk 00:06:44]} {[%emt 00:04:02]} 33. Re3 {[%clk
00:07:54]} {[%emt 00:00:45]} Qg4 {[%clk 00:05:53]} {[%emt 00:01:20]} 34. Rxa6
{[%clk 00:02:00]} {[%emt 00:06:24]} h4 {[%clk 00:01:53]} {[%emt 00:04:30]} 35.
Ra5 {[%clk 00:02:27]} {[%emt 00:00:03]} g6 {[%clk 00:01:54]} {[%emt 00:00:29]}
36. Rae5 {[%clk 00:02:19]} {[%emt 00:00:38]} f5 {[%clk 00:01:18]} {[%emt
00:01:06]} 37. Kh2 {[%clk 00:01:00]} {[%emt 00:01:49]} f4 {[%clk 00:00:50]}
{[%emt 00:00:59]} 38. gxf4 {[%clk 00:00:58]} {[%emt 00:00:31]} Qxf4+ {[%clk
00:01:13]} {[%emt 00:00:06]} 39. Kg2 {[%clk 00:01:02]} {[%emt 00:00:27]} Qg4+
{[%clk 00:01:27]} {[%emt 00:00:17]} 40. Kh2 {[%clk 00:00:52]} {[%emt 00:00:38]}
Qf4+ {[%clk 00:01:47]} {[%emt 00:00:11]} 41. Kg2 {[%clk 00:25:18]} {[%emt
00:06:04]} Qg4+ {[%clk 00:30:41]} {[%emt 00:01:36]} 42. Kh1 {[%clk 00:24:01]}
{[%emt 00:01:46]} Qd1+ {[%clk 00:27:08]} {[%emt 00:04:04]} 43. Kh2 {[%clk
00:16:29]} {[%emt 00:08:02]} Qf1 {[%clk 00:26:01]} {[%emt 00:01:37]} 44. Rf3
{[%clk 00:16:53]} {[%emt 00:00:06]} Kh6 {[%clk 00:26:05]} {[%emt 00:00:26]} 45.
b5 {[%clk 00:14:41]} {[%emt 00:02:43]} g5 {[%clk 00:23:55]} {[%emt 00:02:40]}
46. b6 {[%clk 00:08:05]} {[%emt 00:07:06]} g4 {[%clk 00:20:38]} {[%emt
00:03:47]} 47. Rff5 {[%clk 00:02:34]} {[%emt 00:06:00]} h3 {[%clk 00:14:02]}
{[%emt 00:07:06]} 48. Rh5+ {[%clk 00:01:57]} {[%emt 00:01:07]} Kg6 {[%clk
00:14:24]} {[%emt 00:00:08]} 49. Rhg5+ {[%clk 00:02:22]} {[%emt 00:00:05]} Kf6
{[%clk 00:11:50]} {[%emt 00:03:04]} 50. Rgf5+ {[%clk 00:02:44]} {[%emt
00:00:07]} Kg6 {[%clk 00:12:12]} {[%emt 00:00:09]} 51. Rg5+ {[%clk 00:03:10]}
{[%emt 00:00:04]} Kf6 {[%clk 00:12:34]} {[%emt 00:00:08]} 1/2-1/2

[Event "Masters Tournament (MTO)"]
[Site "Biel, Switzerland"]
[Date "2026.07.13"]
[Round "1.38"]
[White "Rosen, Noah"]
[Black "Kudryavtsev, Eugene"]
[Result "0-1"]
[TimeControl "100+30+30sec/move"]
[WhiteTitle "-"]
[BlackTitle "-"]
[WhiteFideId "1356267"]
[BlackFideId "1315374"]
[WhiteElo "1921"]
[BlackElo "2146"]

1. e4 {[%clk 01:40:48]} {[%emt 00:00:13]} c5 {[%clk 01:40:48]} {[%emt
00:00:11]} 2. Nf3 {[%clk 01:40:58]} {[%emt 00:00:19]} d6 {[%clk 01:41:12]}
{[%emt 00:00:08]} 3. d4 {[%clk 01:41:16]} {[%emt 00:00:12]} cxd4 {[%clk
01:41:35]} {[%emt 00:00:07]} 4. Nxd4 {[%clk 01:41:39]} {[%emt 00:00:06]} Nf6
{[%clk 01:41:59]} {[%emt 00:00:07]} 5. Nc3 {[%clk 01:42:00]} {[%emt 00:00:08]}
a6 {[%clk 01:42:24]} {[%emt 00:00:06]} 6. Rg1 {[%clk 01:41:59]} {[%emt
00:00:30]} e5 {[%clk 01:33:37]} {[%emt 00:09:15]} 7. Nb3 {[%clk 01:42:18]}
{[%emt 00:00:13]} Be6 {[%clk 01:28:52]} {[%emt 00:05:16]} 8. g4 {[%clk
01:42:11]} {[%emt 00:00:37]} h6 {[%clk 01:22:54]} {[%emt 00:06:28]} 9. h4
{[%clk 01:40:51]} {[%emt 00:01:49]} d5 {[%clk 00:53:08]} {[%emt 00:30:17]} 10.
exd5 {[%clk 01:38:01]} {[%emt 00:03:19]} Nxd5 {[%clk 00:53:32]} {[%emt
00:00:06]} 11. Nxd5 {[%clk 01:38:26]} {[%emt 00:00:05]} Qxd5 {[%clk 00:39:08]}
{[%emt 00:14:54]} 12. Qxd5 {[%clk 01:38:49]} {[%emt 00:00:07]} Bxd5 {[%clk
00:39:32]} {[%emt 00:00:06]} 13. Bg2 {[%clk 01:36:13]} {[%emt 00:03:05]} Bxg2
{[%clk 00:39:22]} {[%emt 00:00:41]} 14. Rxg2 {[%clk 01:36:39]} {[%emt
00:00:05]} Nc6 {[%clk 00:33:24]} {[%emt 00:06:28]} 15. c3 {[%clk 01:36:42]}
{[%emt 00:00:26]} Be7 {[%clk 00:29:08]} {[%emt 00:04:45]} 16. h5 {[%clk
01:33:22]} {[%emt 00:03:50]} O-O-O {[%clk 00:24:51]} {[%emt 00:04:48]} 17. Be3
{[%clk 01:31:02]} {[%emt 00:02:49]} Rd5 {[%clk 00:16:04]} {[%emt 00:09:18]} 18.
Rd1 {[%clk 01:28:43]} {[%emt 00:02:49]} Rxd1+ {[%clk 00:15:05]} {[%emt
00:01:29]} 19. Kxd1 {[%clk 01:29:06]} {[%emt 00:00:06]} Kc7 {[%clk 00:14:46]}
{[%emt 00:00:50]} 20. f4 {[%clk 01:19:21]} {[%emt 00:10:14]} Bd6 {[%clk
00:08:25]} {[%emt 00:06:52]} 21. f5 {[%clk 01:16:05]} {[%emt 00:03:45]} f6
{[%clk 00:05:58]} {[%emt 00:02:57]} 22. Nd2 {[%clk 01:16:22]} {[%emt 00:00:12]}
Rd8 {[%clk 00:03:59]} {[%emt 00:02:30]} 23. Ke2 {[%clk 01:15:24]} {[%emt
00:01:28]} Ne7 {[%clk 00:03:16]} {[%emt 00:01:12]} 24. c4 {[%clk 01:05:26]}
{[%emt 00:10:29]} Kc6 {[%clk 00:02:09]} {[%emt 00:01:38]} 25. Ne4 {[%clk
01:05:20]} {[%emt 00:00:35]} b6 {[%clk 00:01:57]} {[%emt 00:00:42]} 26. Nxf6
{[%clk 00:59:46]} {[%emt 00:06:04]} gxf6 {[%clk 00:02:12]} {[%emt 00:00:15]} 27.
Bxh6 {[%clk 01:00:12]} {[%emt 00:00:04]} Rg8 {[%clk 00:01:18]} {[%emt
00:01:24]} 28. Kf3 {[%clk 01:00:01]} {[%emt 00:00:41]} Bc5 {[%clk 00:01:07]}
{[%emt 00:00:41]} 29. Bd2 {[%clk 01:00:03]} {[%emt 00:00:28]} Nxf5 {[%clk
00:01:10]} {[%emt 00:00:27]} 30. gxf5 {[%clk 01:00:15]} {[%emt 00:00:18]} e4+
{[%clk 00:01:37]} {[%emt 00:00:04]} 31. Kxe4 {[%clk 00:59:49]} {[%emt
00:00:55]} Rxg2 {[%clk 00:02:02]} {[%emt 00:00:06]} 32. Bc3 {[%clk 00:58:19]}
{[%emt 00:02:00]} Rg4+ {[%clk 00:01:42]} {[%emt 00:00:49]} 33. Kf3 {[%clk
00:58:11]} {[%emt 00:00:39]} Rg5 {[%clk 00:02:01]} {[%emt 00:00:11]} 34. h6
{[%clk 00:57:36]} {[%emt 00:01:05]} Rxf5+ {[%clk 00:02:09]} {[%emt 00:00:22]}
35. Kg4 {[%clk 00:58:00]} {[%emt 00:00:06]} Rg5+ {[%clk 00:02:33]} {[%emt
00:00:06]} 36. Kf4 {[%clk 00:57:55]} {[%emt 00:00:35]} Bd6+ {[%clk 00:01:56]}
{[%emt 00:01:07]} 37. Ke4 {[%clk 00:57:11]} {[%emt 00:01:14]} Rh5 {[%clk
00:01:14]} {[%emt 00:01:13]} 38. Bxf6 {[%clk 00:56:25]} {[%emt 00:01:15]} Rxh6
{[%clk 00:01:38]} {[%emt 00:00:06]} 39. Bg7 {[%clk 00:56:04]} {[%emt 00:00:51]}
Rh3 {[%clk 00:01:33]} {[%emt 00:00:35]} 40. Bd4 {[%clk 00:52:55]} {[%emt
00:03:38]} Bc5 {[%clk 00:01:41]} {[%emt 00:00:23]} 41. Bg7 {[%clk 00:52:21]}
{[%emt 00:01:04]} Re3+ {[%clk 00:01:42]} {[%emt 00:00:29]} 42. Kf4 {[%clk
00:52:33]} {[%emt 00:00:17]} Re7 {[%clk 00:00:50]} {[%emt 00:01:23]} 43. Bc3
{[%clk 00:51:23]} {[%emt 00:01:40]} Be3+ {[%clk 00:00:41]} {[%emt 00:00:39]} 44.
Kf3 {[%clk 00:51:42]} {[%emt 00:00:11]} Re6 {[%clk 00:00:38]} {[%emt 00:00:34]}
45. Bg7 {[%clk 00:49:10]} {[%emt 00:03:01]} Kc5 {[%clk 00:30:29]} {[%emt
00:00:39]} 46. b3 {[%clk 01:19:25]} {[%emt 00:00:16]} Kb4 {[%clk 00:30:28]}
{[%emt 00:00:30]} 47. Bb2 {[%clk 01:17:47]} {[%emt 00:02:08]} Bc5 {[%clk
00:30:39]} {[%emt 00:00:19]} 48. Bc1 {[%clk 01:15:41]} {[%emt 00:02:36]} Kc3
{[%clk 00:31:02]} {[%emt 00:00:07]} 0-1

[Event "Masters Tournament (MTO)"]
[Site "Biel, Switzerland"]
[Date "2026.07.13"]
[Round "1.39"]
[White "Vihaan, Dumir"]
[Black "Ruchat, Blaise"]
[Result "1-0"]
[TimeControl "100+30+30sec/move"]
[WhiteTitle "-"]
[BlackTitle "-"]
[WhiteFideId "25901010"]
[BlackFideId "1328921"]
[WhiteElo "2132"]
[BlackElo "1912"]

1. d4 {[%clk 01:40:59]} {[%emt 00:03:11]} Nf6 {[%clk 01:40:50]} {[%emt
00:00:11]} 2. Bg5 {[%clk 01:41:11]} {[%emt 00:00:18]} g6 {[%clk 01:40:05]}
{[%emt 00:01:14]} 3. Bxf6 {[%clk 01:41:35]} {[%emt 00:00:07]} exf6 {[%clk
01:40:29]} {[%emt 00:00:06]} 4. c4 {[%clk 01:41:53]} {[%emt 00:00:12]} c5
{[%clk 01:32:31]} {[%emt 00:08:28]} 5. d5 {[%clk 01:23:06]} {[%emt 00:19:17]}
d6 {[%clk 01:30:04]} {[%emt 00:02:57]} 6. Nc3 {[%clk 01:22:49]} {[%emt
00:00:46]} Bg7 {[%clk 01:28:42]} {[%emt 00:01:52]} 7. e3 {[%clk 01:22:45]}
{[%emt 00:00:34]} O-O {[%clk 01:26:46]} {[%emt 00:02:24]} 8. Bd3 {[%clk
01:14:39]} {[%emt 00:08:36]} Nd7 {[%clk 01:22:41]} {[%emt 00:04:36]} 9. Nf3
{[%clk 01:03:31]} {[%emt 00:11:38]} f5 {[%clk 01:13:25]} {[%emt 00:09:46]} 10.
Qc2 {[%clk 01:01:31]} {[%emt 00:02:28]} Ne5 {[%clk 01:06:10]} {[%emt 00:07:46]}
11. Be2 {[%clk 01:01:52]} {[%emt 00:00:10]} a6 {[%clk 00:53:16]} {[%emt
00:13:25]} 12. O-O {[%clk 00:56:41]} {[%emt 00:05:40]} Rb8 {[%clk 00:44:43]}
{[%emt 00:09:03]} 13. Nxe5 {[%clk 00:44:42]} {[%emt 00:12:29]} Bxe5 {[%clk
00:45:05]} {[%emt 00:00:08]} 14. g3 {[%clk 00:43:00]} {[%emt 00:02:13]} Bd7
{[%clk 00:43:42]} {[%emt 00:01:53]} 15. a4 {[%clk 00:40:51]} {[%emt 00:02:39]}
b6 {[%clk 00:40:11]} {[%emt 00:04:00]} 16. Ra3 {[%clk 00:38:52]} {[%emt
00:02:29]} Bf6 {[%clk 00:27:32]} {[%emt 00:13:09]} 17. Bd3 {[%clk 00:35:12]}
{[%emt 00:04:11]} Re8 {[%clk 00:25:18]} {[%emt 00:02:44]} 18. Ne2 {[%clk
00:33:24]} {[%emt 00:02:17]} h5 {[%clk 00:12:48]} {[%emt 00:13:00]} 19. Nf4
{[%clk 00:32:06]} {[%emt 00:01:48]} h4 {[%clk 00:13:03]} {[%emt 00:00:16]} 20.
Kg2 {[%clk 00:25:22]} {[%emt 00:07:14]} Kg7 {[%clk 00:12:27]} {[%emt 00:01:05]}
21. g4 {[%clk 00:17:22]} {[%emt 00:08:31]} fxg4 {[%clk 00:07:30]} {[%emt
00:05:27]} 22. Bxg6 {[%clk 00:12:42]} {[%emt 00:05:10]} fxg6 {[%clk 00:06:12]}
{[%emt 00:01:47]} 23. Qxg6+ {[%clk 00:13:08]} {[%emt 00:00:04]} Kf8 {[%clk
00:03:40]} {[%emt 00:03:03]} 24. f3 {[%clk 00:05:52]} {[%emt 00:07:46]} Bg7
{[%clk 00:01:12]} {[%emt 00:02:58]} 25. fxg4 {[%clk 00:05:14]} {[%emt
00:01:08]} Kg8 {[%clk 00:01:30]} {[%emt 00:00:12]} 26. Nh5 {[%clk 00:05:24]}
{[%emt 00:00:20]} Re7 {[%clk 00:00:36]} {[%emt 00:01:24]} 27. Nf6+ {[%clk
00:05:42]} {[%emt 00:00:12]} 1-0

[Event "Masters Tournament (MTO)"]
[Site "Biel, Switzerland"]
[Date "2026.07.13"]
[Round "1.40"]
[White "Alsaleh, Eissa"]
[Black "Dai, Wenzhi"]
[Result "0-1"]
[TimeControl "100+30+30sec/move"]
[WhiteTitle "-"]
[BlackTitle "-"]
[WhiteFideId "10312463"]
[BlackFideId "8608369"]
[WhiteElo "1908"]
[BlackElo "2126"]

1. e4 {[%clk 01:40:40]} {[%emt 00:00:20]} e5 {[%clk 01:40:45]} {[%emt
00:00:15]} 2. Nf3 {[%clk 01:40:55]} {[%emt 00:00:15]} Nf6 {[%clk 01:41:06]}
{[%emt 00:00:10]} 3. Nc3 {[%clk 01:40:51]} {[%emt 00:00:33]} Nc6 {[%clk
01:41:30]} {[%emt 00:00:06]} 4. d4 {[%clk 01:40:25]} {[%emt 00:00:56]} exd4
{[%clk 01:41:18]} {[%emt 00:00:43]} 5. Nxd4 {[%clk 01:40:04]} {[%emt 00:00:51]}
Bb4 {[%clk 01:41:11]} {[%emt 00:00:37]} 6. Nxc6 {[%clk 01:39:10]} {[%emt
00:01:24]} bxc6 {[%clk 01:41:30]} {[%emt 00:00:11]} 7. Bd3 {[%clk 01:37:32]}
{[%emt 00:02:07]} d5 {[%clk 01:41:46]} {[%emt 00:00:14]} 8. O-O {[%clk
01:32:24]} {[%emt 00:05:38]} Bxc3 {[%clk 01:24:00]} {[%emt 00:18:17]} 9. bxc3
{[%clk 01:31:11]} {[%emt 00:01:41]} dxe4 {[%clk 01:24:06]} {[%emt 00:00:26]} 10.
Bc4 {[%clk 01:17:26]} {[%emt 00:14:14]} O-O {[%clk 01:10:52]} {[%emt 00:13:45]}
11. Ba3 {[%clk 00:58:04]} {[%emt 00:19:50]} Qxd1 {[%clk 00:51:41]} {[%emt
00:19:43]} 12. Rfxd1 {[%clk 00:52:15]} {[%emt 00:06:18]} Re8 {[%clk 00:51:59]}
{[%emt 00:00:13]} 13. h3 {[%clk 00:41:52]} {[%emt 00:10:52]} Bf5 {[%clk
00:44:18]} {[%emt 00:08:11]} 14. g4 {[%clk 00:38:14]} {[%emt 00:04:08]} Be6
{[%clk 00:42:52]} {[%emt 00:01:56]} 15. Ba6 {[%clk 00:33:07]} {[%emt 00:05:36]}
Rab8 {[%clk 00:41:01]} {[%emt 00:02:22]} 16. Bc5 {[%clk 00:30:27]} {[%emt
00:03:10]} h5 {[%clk 00:29:44]} {[%emt 00:11:47]} 17. Be2 {[%clk 00:25:43]}
{[%emt 00:05:13]} hxg4 {[%clk 00:25:01]} {[%emt 00:05:14]} 18. hxg4 {[%clk
00:24:36]} {[%emt 00:01:37]} a5 {[%clk 00:24:51]} {[%emt 00:00:40]} 19. g5
{[%clk 00:16:43]} {[%emt 00:08:23]} Nd5 {[%clk 00:23:13]} {[%emt 00:02:08]} 20.
Bd4 {[%clk 00:16:22]} {[%emt 00:00:51]} Nf4 {[%clk 00:23:02]} {[%emt 00:00:41]}
21. Bf1 {[%clk 00:12:52]} {[%emt 00:04:00]} Bg4 {[%clk 00:18:00]} {[%emt
00:05:32]} 22. Rd2 {[%clk 00:10:26]} {[%emt 00:02:57]} Bf3 {[%clk 00:17:41]}
{[%emt 00:00:49]} 23. Be3 {[%clk 00:09:55]} {[%emt 00:01:00]} Nd5 {[%clk
00:17:48]} {[%emt 00:00:24]} 24. Bd4 {[%clk 00:09:20]} {[%emt 00:01:06]} c5
{[%clk 00:15:14]} {[%emt 00:03:03]} 25. Bxc5 {[%clk 00:08:54]} {[%emt
00:00:56]} Re5 {[%clk 00:15:05]} {[%emt 00:00:39]} 26. g6 {[%clk 00:07:02]}
{[%emt 00:02:22]} Rh5 {[%clk 00:12:44]} {[%emt 00:02:51]} 27. gxf7+ {[%clk
00:06:19]} {[%emt 00:01:13]} Kxf7 {[%clk 00:13:02]} {[%emt 00:00:12]} 28. Bg2
{[%clk 00:06:37]} {[%emt 00:00:12]} Rbh8 {[%clk 00:11:15]} {[%emt 00:02:17]}
0-1

[Event "Masters Tournament (MTO)"]
[Site "Biel, Switzerland"]
[Date "2026.07.13"]
[Round "1.41"]
[White "Fogo Esquivel, Levi Kalani Alexander"]
[Black "Joly, Fabrice"]
[Result "1-0"]
[TimeControl "100+30+30sec/move"]
[WhiteTitle "-"]
[BlackTitle "-"]
[WhiteFideId "5183189"]
[BlackFideId "612235"]
[WhiteElo "2125"]
[BlackElo "1907"]

1. e4 {[%clk 01:40:55]} {[%emt 00:00:06]} e5 {[%clk 01:40:11]} {[%emt
00:00:48]} 2. Nf3 {[%clk 01:41:16]} {[%emt 00:00:09]} Nf6 {[%clk 01:40:26]}
{[%emt 00:00:15]} 3. d4 {[%clk 01:37:44]} {[%emt 00:04:02]} Nxe4 {[%clk
01:39:33]} {[%emt 00:01:24]} 4. Bd3 {[%clk 01:37:46]} {[%emt 00:00:26]} d5
{[%clk 01:39:36]} {[%emt 00:00:28]} 5. Nxe5 {[%clk 01:38:09]} {[%emt 00:00:07]}
Nd7 {[%clk 01:39:30]} {[%emt 00:00:36]} 6. Nxd7 {[%clk 01:37:30]} {[%emt
00:01:10]} Bxd7 {[%clk 01:38:28]} {[%emt 00:01:32]} 7. O-O {[%clk 01:35:18]}
{[%emt 00:02:41]} Bd6 {[%clk 01:32:20]} {[%emt 00:06:39]} 8. c4 {[%clk
01:28:20]} {[%emt 00:07:27]} O-O {[%clk 01:31:17]} {[%emt 00:01:33]} 9. Nc3
{[%clk 01:19:31]} {[%emt 00:09:18]} Nxc3 {[%clk 01:17:31]} {[%emt 00:14:17]} 10.
bxc3 {[%clk 01:19:45]} {[%emt 00:00:15]} dxc4 {[%clk 01:14:57]} {[%emt
00:03:05]} 11. Bxc4 {[%clk 01:20:13]} {[%emt 00:00:02]} Qh4 {[%clk 01:09:12]}
{[%emt 00:06:15]} 12. g3 {[%clk 01:19:43]} {[%emt 00:00:59]} Qh3 {[%clk
01:03:32]} {[%emt 00:06:11]} 13. Bd5 {[%clk 01:19:13]} {[%emt 00:00:59]} Rab8
{[%clk 00:49:40]} {[%emt 00:14:23]} 14. Bg2 {[%clk 01:18:16]} {[%emt 00:01:26]}
Qf5 {[%clk 00:45:23]} {[%emt 00:04:48]} 15. Be3 {[%clk 01:16:51]} {[%emt
00:01:54]} a6 {[%clk 00:38:48]} {[%emt 00:07:07]} 16. c4 {[%clk 01:14:53]}
{[%emt 00:02:27]} b5 {[%clk 00:32:00]} {[%emt 00:07:19]} 17. c5 {[%clk
01:13:52]} {[%emt 00:01:28]} Be7 {[%clk 00:31:45]} {[%emt 00:00:47]} 18. d5
{[%clk 01:13:46]} {[%emt 00:00:36]} Rfd8 {[%clk 00:27:59]} {[%emt 00:04:16]} 19.
d6 {[%clk 01:11:51]} {[%emt 00:02:26]} cxd6 {[%clk 00:27:21]} {[%emt 00:01:07]}
20. c6 {[%clk 01:12:03]} {[%emt 00:00:18]} Bxc6 {[%clk 00:26:24]} {[%emt
00:01:27]} 21. Bxc6 {[%clk 01:12:30]} {[%emt 00:00:02]} d5 {[%clk 00:25:49]}
{[%emt 00:01:07]} 22. Rc1 {[%clk 01:10:38]} {[%emt 00:02:21]} d4 {[%clk
00:17:35]} {[%emt 00:08:44]} 23. Bf4 {[%clk 01:10:35]} {[%emt 00:00:32]} Rbc8
{[%clk 00:13:37]} {[%emt 00:04:30]} 24. Qf3 {[%clk 01:08:56]} {[%emt 00:02:08]}
Ba3 {[%clk 00:12:24]} {[%emt 00:01:43]} 25. Qxa3 {[%clk 01:08:55]} {[%emt
00:00:34]} 1-0

[Event "Masters Tournament (MTO)"]
[Site "Biel, Switzerland"]
[Date "2026.07.13"]
[Round "1.42"]
[White "Berezovskii, Arina"]
[Black "Xu, Chang(Cq)"]
[Result "0-1"]
[TimeControl "100+30+30sec/move"]
[WhiteTitle "-"]
[BlackTitle "-"]
[WhiteFideId "34449850"]
[BlackFideId "8641757"]
[WhiteElo "1906"]
[BlackElo "2125"]

1. e4 {[%clk 01:40:59]} c5 {[%clk 01:40:40]} {[%emt 00:00:20]} 2. Nf3 {[%clk
01:41:23]} {[%emt 00:00:06]} d6 {[%clk 01:40:56]} {[%emt 00:00:14]} 3. c3
{[%clk 01:41:47]} {[%emt 00:00:07]} Nf6 {[%clk 01:41:12]} {[%emt 00:00:12]} 4.
h3 {[%clk 01:42:12]} {[%emt 00:00:06]} g6 {[%clk 01:39:27]} {[%emt 00:02:15]} 5.
Bd3 {[%clk 01:42:31]} {[%emt 00:00:11]} Bg7 {[%clk 01:39:37]} {[%emt 00:00:18]}
6. Bc2 {[%clk 01:42:56]} {[%emt 00:00:06]} O-O {[%clk 01:39:35]} {[%emt
00:00:32]} 7. d4 {[%clk 01:43:18]} {[%emt 00:00:08]} Nc6 {[%clk 01:26:43]}
{[%emt 00:13:22]} 8. Nbd2 {[%clk 01:32:18]} {[%emt 00:11:31]} cxd4 {[%clk
01:15:44]} {[%emt 00:11:28]} 9. cxd4 {[%clk 01:31:04]} {[%emt 00:01:44]} Qb6
{[%clk 01:13:29]} {[%emt 00:02:44]} 10. Nb3 {[%clk 01:27:59]} {[%emt 00:03:36]}
a5 {[%clk 01:12:27]} {[%emt 00:01:33]} 11. d5 {[%clk 01:10:53]} {[%emt
00:17:36]} Nb4 {[%clk 01:02:19]} {[%emt 00:10:36]} 12. Bb1 {[%clk 01:06:57]}
{[%emt 00:04:27]} a4 {[%clk 00:56:56]} {[%emt 00:05:53]} 13. Nbd4 {[%clk
01:05:23]} {[%emt 00:02:05]} Bd7 {[%clk 00:52:10]} {[%emt 00:05:14]} 14. O-O
{[%clk 01:03:19]} {[%emt 00:02:34]} Rfc8 {[%clk 00:50:40]} {[%emt 00:02:01]} 15.
Be3 {[%clk 00:56:40]} {[%emt 00:07:10]} Qd8 {[%clk 00:43:44]} {[%emt 00:07:24]}
16. Bd3 {[%clk 00:50:15]} {[%emt 00:06:57]} Be8 {[%clk 00:41:11]} {[%emt
00:03:02]} 17. Nc2 {[%clk 00:41:13]} {[%emt 00:09:33]} Nxd3 {[%clk 00:36:48]}
{[%emt 00:04:52]} 18. Qxd3 {[%clk 00:41:35]} {[%emt 00:00:08]} Qa5 {[%clk
00:35:27]} {[%emt 00:01:50]} 19. Nfd4 {[%clk 00:38:01]} {[%emt 00:04:06]} Nd7
{[%clk 00:32:04]} {[%emt 00:03:52]} 20. Bd2 {[%clk 00:35:35]} {[%emt 00:02:57]}
Ne5 {[%clk 00:28:47]} {[%emt 00:03:47]} 21. Bxa5 {[%clk 00:26:09]} {[%emt
00:09:57]} Nxd3 {[%clk 00:28:56]} {[%emt 00:00:19]} 22. Bc3 {[%clk 00:26:17]}
{[%emt 00:00:23]} a3 {[%clk 00:28:35]} {[%emt 00:00:50]} 23. Rfb1 {[%clk
00:15:10]} {[%emt 00:11:37]} axb2 {[%clk 00:28:20]} {[%emt 00:00:46]} 24. Bxb2
{[%clk 00:15:30]} {[%emt 00:00:10]} Rxc2 {[%clk 00:28:06]} {[%emt 00:00:43]} 25.
Nxc2 {[%clk 00:15:16]} {[%emt 00:00:45]} Bxb2 {[%clk 00:28:20]} {[%emt
00:00:15]} 26. Rxb2 {[%clk 00:15:32]} {[%emt 00:00:15]} Nxb2 {[%clk 00:28:38]}
{[%emt 00:00:11]} 27. Rb1 {[%clk 00:15:39]} {[%emt 00:00:23]} Nd3 {[%clk
00:28:51]} {[%emt 00:00:16]} 28. Rxb7 {[%clk 00:15:47]} {[%emt 00:00:24]} Rxa2
{[%clk 00:28:15]} {[%emt 00:01:04]} 29. Nd4 {[%clk 00:15:55]} {[%emt 00:00:23]}
Nxf2 {[%clk 00:27:00]} {[%emt 00:01:45]} 30. Rb8 {[%clk 00:15:35]} {[%emt
00:00:51]} Kf8 {[%clk 00:27:11]} {[%emt 00:00:18]} 31. Rc8 {[%clk 00:15:16]}
{[%emt 00:00:50]} Nxe4 {[%clk 00:27:20]} {[%emt 00:00:19]} 32. Nb5 {[%clk
00:15:41]} {[%emt 00:00:07]} Nf6 {[%clk 00:26:48]} {[%emt 00:01:01]} 33. Nc7
{[%clk 00:15:47]} {[%emt 00:00:24]} Rc2 {[%clk 00:26:56]} {[%emt 00:00:22]} 0-1